bitfinex/quotes_BTCUSD_20240811
["timestamp","ask_amount","ask_price","bid_price","bid_amount"]
[1723338496409,0.000832,61153.0,61152.0,0.63243883]
[1723338496623,0.000832,61153.0,61152.0,0.6324399]
[1723338497147,0.000832,61153.0,61152.0,0.63243937]
[1723338500249,0.000832,61153.0,61152.0,0.4966202]
[1723338500451,0.000832,61153.0,61152.0,0.63243937]
[1723338502682,0.000832,61153.0,61152.0,0.40350237]
[1723338503724,0.000832,61153.0,61152.0,0.4035029]
[1723338504612,0.000832,61153.0,61152.0,0.6324399]
[1723338508070,0.000832,61153.0,61152.0,0.4966202]
[1723338508277,0.000832,61153.0,61152.0,0.63243824]
[1723338509881,0.000832,61153.0,61152.0,0.40350124]
[1723338512834,0.000832,61153.0,61152.0,0.32520124]
[1723338515009,0.000832,61153.0,61152.0,0.32520278]
[1723338519345,0.000832,61153.0,61152.0,0.32520225]
[1723338520151,0.000832,61153.0,61152.0,0.49113925]
[1723338522475,0.000832,61153.0,61152.0,0.3553202]
[1723338522686,0.000832,61153.0,61152.0,0.4911387]
[1723338522839,0.000832,61153.0,61152.0,0.2622017]
[1723338524995,0.078832,61153.0,61152.0,0.2622017]
[1723338526538,0.078832,61153.0,61152.0,0.26220275]
[1723338530400,0.078832,61153.0,61152.0,0.1263832]
[1723338530605,0.078832,61153.0,61152.0,0.26220275]
[1723338534627,0.078832,61153.0,61152.0,0.1263832]
[1723338534802,0.078832,61153.0,61152.0,0.26220275]
[1723338536397,0.484731,61153.0,61152.0,0.14773475]
[1723338536754,0.53381451,61153.0,61152.0,0.14773475]
[1723338536960,0.484731,61153.0,61152.0,0.14773475]
[1723338537278,0.484731,61153.0,61152.0,0.13673475]
[1723338537694,0.486731,61153.0,61152.0,0.13673475]
[1723338538111,0.484731,61153.0,61152.0,0.13673475]
[1723338538745,0.255798,61153.0,61152.0,0.13673475]
[1723338538988,0.255798,61153.0,61152.0,0.13673828]
[1723338539667,0.256798,61153.0,61152.0,0.13673828]
[1723338539870,0.255798,61153.0,61152.0,0.13673828]
[1723338540212,0.255798,61153.0,61152.0,0.13773828]
[1723338540413,0.255798,61153.0,61152.0,0.13673828]
[1723338540877,0.141332,61153.0,61152.0,0.13873828]
[1723338542439,0.078832,61153.0,61152.0,0.13873772]
[1723338542731,0.078832,61153.0,61152.0,0.0029152]
[1723338542966,0.078832,61153.0,61152.0,0.13673772]
[1723338543173,0.078832,61153.0,61152.0,0.13973772]
[1723338543340,0.078832,61153.0,61152.0,0.13673772]
[1723338543742,0.078832,61153.0,61152.0,0.14073772]
[1723338547922,0.144732,61153.0,61152.0,0.14073772]
[1723338548758,0.144732,61153.0,61152.0,0.13673772]
[1723338549211,0.144732,61153.0,61152.0,0.13973772]
[1723338549428,0.144732,61153.0,61152.0,0.13673772]
[1723338549778,0.144732,61153.0,61152.0,0.14073772]
[1723338550128,0.259198,61153.0,61152.0,0.14073772]
[1723338550547,0.259198,61153.0,61152.0,0.0049152]
[1723338550755,0.259198,61153.0,61152.0,0.14073785]
[1723338551345,0.488131,61153.0,61152.0,0.14073785]
[1723338551549,0.717064,61153.0,61152.0,0.14073785]
[1723338551749,1.20981192,61153.0,61152.0,0.13673785]
[1723338552123,1.20981192,61153.0,61152.0,0.0039152]
[1723338552124,1.33234703,61153.0,61152.0,0.0039152]
[1723338552296,1.10341403,61153.0,61152.0,0.0039152]
[1723338552493,0.98087892,61153.0,61152.0,0.0009152]
[1723338552698,0.98487892,61153.0,61152.0,0.0019152]
[1723338553076,0.98087892,61153.0,61152.0,0.0009152]
[1723338553405,1.07883771,61153.0,61152.0,0.0009152]
[1723338553536,1.08283771,61153.0,61152.0,0.0019152]
[1723338554191,0.98487892,61153.0,61152.0,0.0019152]
[1723338555219,1.05433241,61153.0,61152.0,0.0009152]
[1723338555431,1.05833465,61153.0,61152.0,0.0019152]
[1723338555638,0.89451973,61153.0,61152.0,0.0019152]
[1723338556615,0.89051973,61153.0,61152.0,0.0009152]
[1723338557071,0.889964,61153.0,61152.0,0.0019152]
[1723338557518,0.87001592,61153.0,61152.0,0.0019152]
[1723338557717,0.93891592,61153.0,61152.0,0.0019152]
[1723338558258,0.93491592,61153.0,61152.0,0.0009152]
[1723338558576,0.885964,61153.0,61152.0,0.0009152]
[1723338558721,0.889964,61153.0,61152.0,0.0009152]
[1723338558921,0.93891592,61153.0,61152.0,0.0009152]
[1723338559166,0.889964,61153.0,61152.0,0.0009152]
[1723338561993,0.885964,61153.0,61152.0,0.0009152]
[1723338562252,0.886964,61153.0,61152.0,0.0009152]
[1723338562453,0.885964,61153.0,61152.0,0.0009152]
[1723338562898,0.887964,61153.0,61152.0,0.0009152]
[1723338563453,0.885964,61153.0,61152.0,0.0009152]
[1723338565908,0.887964,61153.0,61152.0,0.0009152]
[1723338566253,0.659031,61153.0,61152.0,0.0009152]
[1723338566395,0.657031,61153.0,61152.0,0.0009152]
[1723338566800,0.659031,61153.0,61152.0,0.0009152]
[1723338567605,0.887964,61153.0,61152.0,0.0009152]
[1723338569227,0.885964,61153.0,61152.0,0.0009152]
[1723338569635,0.887964,61153.0,61152.0,0.0009152]
[1723338569838,0.885964,61153.0,61152.0,0.0009152]
[1723338570198,0.886964,61153.0,61152.0,0.0009152]
[1723338570569,0.888964,61153.0,61152.0,0.0009152]
[1723338571117,0.886964,61153.0,61152.0,0.0009152]
[1723338571320,0.888964,61153.0,61152.0,0.0009152]
[1723338572142,0.887964,61153.0,61152.0,0.0009152]
[1723338572651,0.888964,61153.0,61152.0,0.0009152]
[1723338576063,0.820064,61153.0,61152.0,0.0009152]
[1723338576473,0.888964,61153.0,61152.0,0.0009152]
[1723338578637,0.93786654,61153.0,61152.0,0.0009152]
[1723338578932,0.888964,61153.0,61152.0,0.0009152]
[1723338579350,0.93786654,61153.0,61152.0,0.0009152]
[1723338582095,0.93586654,61153.0,61152.0,0.0009152]
[1723338582283,0.93686654,61153.0,61152.0,0.0009152]
[1723338582490,0.93786654,61153.0,61152.0,0.0009152]
[1723338582892,0.93486654,61153.0,61152.0,0.0009152]
[1723338583213,0.93786654,61153.0,61152.0,0.0009152]
[1723338583413,0.93686654,61153.0,61152.0,0.0009152]
[1723338583810,0.93786654,61153.0,61152.0,0.0009152]
[1723338584011,0.93686654,61153.0,61152.0,0.0009152]
[1723338584624,0.70793354,61153.0,61152.0,0.0009152]
[1723338584825,0.102832,61153.0,61152.0,0.1428152]
[1723338585025,0.002832,61153.0,61152.0,0.39311554]
[1723338585832,0.000832,61153.0,61152.0,0.39311554]
[1723338586144,0.000832,61153.0,61152.0,0.39611554]
[1723338586345,0.000832,61153.0,61152.0,0.39610602]
[1723338586548,0.000832,61153.0,61152.0,0.39910602]
[1723338587346,0.000832,61153.0,61152.0,0.28463802]
[1723338588189,0.000832,61153.0,61152.0,0.28963802]
[1723338589314,0.000832,61153.0,61152.0,0.40410602]
[1723338589883,0.000832,61153.0,61152.0,0.28963802]
[1723338590656,0.000832,61153.0,61152.0,0.2682832]
[1723338590979,0.000832,61153.0,61152.0,0.40410708]
[1723338594023,0.000832,61153.0,61152.0,0.2682832]
[1723338594346,0.000832,61153.0,61152.0,0.40410467]
[1723338600214,0.000832,61153.0,61152.0,0.28963667]
[1723338600411,0.000832,61153.0,61152.0,0.21053667]
[1723338600739,0.000832,61153.0,61152.0,0.55394167]
[1723338600940,0.000832,61153.0,61152.0,0.55394318]
[1723338601378,0.000832,61153.0,61152.0,0.55394037]
[1723338602217,0.000832,61153.0,61152.0,0.32500337]
[1723338605511,0.000832,61153.0,61152.0,0.1891832]
[1723338606145,0.145032,61153.0,61152.0,0.0119152]
[1723338606309,0.259498,61153.0,61152.0,0.0119152]
[1723338607790,0.259498,61153.0,61152.0,0.14773906]
[1723338607995,0.259498,61153.0,61152.0,0.0119152]
[1723338608137,0.259498,61153.0,61152.0,0.14773906]
[1723338608547,0.259498,61153.0,61152.0,0.14774011]
[1723338609321,0.717364,61153.0,61152.0,0.14774011]
[1723338609517,0.717364,61153.0,61152.0,0.0119152]
[1723338609518,1.21011192,61153.0,61152.0,0.0119152]
[1723338610266,1.21011192,61153.0,61152.0,0.0009152]
[1723338610472,1.21977688,61153.0,61152.0,0.0009152]
[1723338610674,1.23077688,61153.0,61152.0,0.0019152]
[1723338610888,1.23477688,61153.0,61152.0,0.0029152]
[1723338611086,1.34607178,61153.0,61152.0,0.0019152]
[1723338611496,1.35607178,61153.0,61152.0,0.0029152]
[1723338612184,1.35607178,61153.0,61152.0,0.0019152]
[1723338612185,1.22977688,61153.0,61152.0,0.0019152]
[1723338612496,1.23377688,61153.0,61152.0,0.0029152]
[1723338614393,1.35608883,61153.0,61152.0,0.0029152]
[1723338618157,1.23377688,61153.0,61152.0,0.0029152]
[1723338618594,1.30267688,61153.0,61152.0,0.0029152]
[1723338619155,1.40053483,61153.0,61152.0,0.0029152]
[1723338619354,1.30267688,61153.0,61152.0,0.0029152]
[1723338619779,2.11053794,61153.0,61152.0,0.0029152]
[1723338620581,2.01267688,61153.0,61152.0,0.0029152]
[1723338621824,2.11052774,61153.0,61152.0,0.0029152]
[1723338625701,2.08605096,61153.0,61152.0,0.0029152]
[1723338626246,2.01267688,61153.0,61152.0,0.0029152]
[1723338626451,2.08605096,61153.0,61152.0,0.0029152]
[1723338627269,2.01267688,61153.0,61152.0,0.0029152]
[1723338627664,2.08605096,61153.0,61152.0,0.0029152]
[1723338628105,2.01267688,61153.0,61152.0,0.0029152]
[1723338629388,2.06158757,61153.0,61152.0,0.0029152]
[1723338630556,2.06159599,61153.0,61152.0,0.0029152]
[1723338630731,2.06159424,61153.0,61152.0,0.0029152]
[1723338630964,2.01267688,61153.0,61152.0,0.0029152]
[1723338631150,2.0616048,61153.0,61152.0,0.0029152]
[1723338631713,2.01267688,61153.0,61152.0,0.0029152]
[1723338632166,1.99270772,61153.0,61152.0,0.0029152]
[1723338632614,2.06160772,61153.0,61152.0,0.0029152]
[1723338633055,2.01267688,61153.0,61152.0,0.0029152]
[1723338634531,2.05599632,61153.0,61152.0,0.0029152]
[1723338634911,2.01267688,61153.0,61152.0,0.0029152]
[1723338635109,2.05599634,61153.0,61152.0,0.0029152]
[1723338636030,2.12936531,61153.0,61152.0,0.0029152]
[1723338636230,2.06161186,61153.0,61152.0,0.0029152]
[1723338636936,2.1294347,61153.0,61152.0,0.0029152]
[1723338637755,2.10500277,61153.0,61152.0,0.0029152]
[1723338637958,2.05605634,61153.0,61152.0,0.0029152]
[1723338638157,2.12946045,61153.0,61152.0,0.0029152]
[1723338638360,2.05605634,61153.0,61152.0,0.0029152]
[1723338638764,2.12946045,61153.0,61152.0,0.0029152]
[1723338639002,2.05605634,61153.0,61152.0,0.0029152]
[1723338639209,2.12946045,61153.0,61152.0,0.0029152]
[1723338641018,2.12946986,61153.0,61152.0,0.0029152]
[1723338641228,2.12948992,61153.0,61152.0,0.0029152]
[1723338642029,2.05606575,61153.0,61152.0,0.0029152]
[1723338642367,2.12947678,61153.0,61152.0,0.0029152]
[1723338642694,2.12948142,61153.0,61152.0,0.0029152]
[1723338643247,2.12949437,61153.0,61152.0,0.0029152]
[1723338643852,2.15395331,61153.0,61152.0,0.0029152]
[1723338644938,2.05606575,61153.0,61152.0,0.0029152]
[1723338645138,2.1784252,61153.0,61152.0,0.0029152]
[1723338646440,2.05606575,61153.0,61152.0,0.0029152]
[1723338646871,1.98716575,61153.0,61152.0,0.0029152]
[1723338647075,2.05606575,61153.0,61152.0,0.0029152]
[1723338648494,2.0560333,61153.0,61152.0,0.0029152]
[1723338648834,2.05599354,61153.0,61152.0,0.0029152]
[1723338650273,2.12618445,61153.0,61152.0,0.0029152]
[1723338651118,2.05597212,61153.0,61152.0,0.0029152]
[1723338651904,2.01267688,61153.0,61152.0,0.0029152]
[1723338652105,2.05584406,61153.0,61152.0,0.0029152]
[1723338652304,2.20284715,61153.0,61152.0,0.0029152]
[1723338653101,2.05584406,61153.0,61152.0,0.0029152]
[1723338659533,2.05570358,61153.0,61152.0,0.0029152]
[1723338659949,2.05570172,61153.0,61152.0,0.0029152]
[1723338665865,2.05576918,61153.0,61152.0,0.0029152]
[1723338667122,1.99046918,61153.0,61152.0,0.0029152]
[1723338667302,1.91156918,61153.0,61152.0,0.0029152]
[1723338668205,1.91119198,61153.0,61152.0,0.0029152]
[1723338669573,1.91130333,61153.0,61152.0,0.0029152]
[1723338670231,1.91130798,61153.0,61152.0,0.0029152]
[1723338670942,1.84240798,61153.0,61152.0,0.0029152]
[1723338671087,1.91130798,61153.0,61152.0,0.0029152]
[1723338673491,1.20130798,61153.0,61152.0,0.0029152]
[1723338675851,1.27719837,61153.0,61152.0,0.0019152]
[1723338676108,1.28119837,61153.0,61152.0,0.0029152]
[1723338676309,1.27719837,61153.0,61152.0,0.0019152]
[1723338676543,1.26719837,61153.0,61152.0,0.0009152]
[1723338676894,1.28119837,61153.0,61152.0,0.0029152]
[1723338677947,1.20084847,61153.0,61152.0,0.0029152]
[1723338678201,1.18684847,61153.0,61152.0,0.0009152]
[1723338678403,1.19684847,61153.0,61152.0,0.0029152]
[1723338678644,1.34124847,61153.0,61152.0,0.0029152]
[1723338678848,1.33724847,61153.0,61152.0,0.0019152]
[1723338679002,1.33124847,61153.0,61152.0,0.0019152]
[1723338679201,1.34224847,61153.0,61152.0,0.0029152]
[1723338679406,1.34224847,61153.0,61152.0,0.0019152]
[1723338679407,1.33824847,61153.0,61152.0,0.0019152]
[1723338679630,1.33824847,61153.0,61152.0,0.0029152]
[1723338679830,1.33524847,61153.0,61152.0,0.0019152]
[1723338680076,1.34324847,61153.0,61152.0,0.0019152]
[1723338680245,1.49050086,61153.0,61152.0,0.0019152]
[1723338680449,1.44812927,61153.0,61152.0,0.0019152]
[1723338680648,1.34308033,61153.0,61152.0,0.0019152]
[1723338681050,1.34308293,61153.0,61152.0,0.0019152]
[1723338681864,1.33908293,61153.0,61152.0,0.0019152]
[1723338682251,1.34607159,61153.0,61152.0,0.0029152]
[1723338683113,1.49332398,61153.0,61152.0,0.0029152]
[1723338683329,1.34607159,61153.0,61152.0,0.0029152]
[1723338683751,1.28377159,61153.0,61152.0,0.0029152]
[1723338686127,1.43102398,61153.0,61152.0,0.0029152]
[1723338686330,1.28377159,61153.0,61152.0,0.0029152]
[1723338687707,1.24157688,61153.0,61152.0,0.0029152]
[1723338687922,1.28378097,61153.0,61152.0,0.0029152]
[1723338688827,1.13278097,61153.0,61152.0,0.0029152]
[1723338689048,1.20168097,61153.0,61152.0,0.0656152]
[1723338689740,1.13278097,61153.0,61152.0,0.0656152]
[1723338689955,1.20168097,61153.0,61152.0,0.0656152]
[1723338690189,1.3243598,61153.0,61152.0,0.0656152]
[1723338691302,1.32363331,61153.0,61152.0,0.0656152]
[1723338691714,1.28215571,61153.0,61152.0,0.0656152]
[1723338691907,1.32364062,61153.0,61152.0,0.0656152]
[1723338693016,1.323671,61153.0,61152.0,0.0656152]
[1723338694577,1.403871,61153.0,61152.0,0.0029152]
[1723338694793,1.28119217,61153.0,61152.0,0.0029152]
[1723338702400,1.28101369,61153.0,61152.0,0.0029152]
[1723338705464,1.28099917,61153.0,61152.0,0.0029152]
[1723338706467,0.82053792,61153.0,61152.0,0.1401152]
[1723338706663,0.88943792,61153.0,61152.0,0.1401152]
[1723338706947,0.9307647,61153.0,61152.0,0.1401152]
[1723338707413,1.1596977,61153.0,61152.0,0.1401152]
[1723338707651,0.9307647,61153.0,61152.0,0.1401152]
[1723338707888,1.1596977,61153.0,61152.0,0.1401152]
[1723338708105,0.93076027,61153.0,61152.0,0.0642152]
[1723338708339,0.93076027,61153.0,61152.0,0.0029152]
[1723338708977,1.15975539,61153.0,61152.0,0.0029152]
[1723338709329,0.93082239,61153.0,61152.0,0.0029152]
[1723338710448,1.15975539,61153.0,61152.0,0.0029152]
[1723338711170,0.93082239,61153.0,61152.0,0.0029152]
[1723338711320,1.15975539,61153.0,61152.0,0.0029152]
[1723338711730,1.03705086,61153.0,61152.0,0.0029152]
[1723338712776,1.20081737,61153.0,61152.0,0.0029152]
[1723338713154,1.15947688,61153.0,61152.0,0.0029152]
[1723338713354,1.20085032,61153.0,61152.0,0.0029152]
[1723338714963,2.06495032,61153.0,61152.0,0.0029152]
[1723338715927,2.21217592,61153.0,61152.0,0.0029152]
[1723338716900,2.06495032,61153.0,61152.0,0.0029152]
[1723338717070,2.21222037,61153.0,61152.0,0.0029152]
[1723338717418,2.06495032,61153.0,61152.0,0.0029152]
[1723338719705,2.21222037,61153.0,61152.0,0.0029152]
[1723338720750,2.0647932,61153.0,61152.0,0.0029152]
[1723338720869,2.21207456,61153.0,61152.0,0.0029152]
[1723338722648,2.14317456,61153.0,61152.0,0.0029152]
[1723338722848,2.06797456,61153.0,61152.0,0.0029152]
[1723338723053,1.9206932,61153.0,61152.0,0.0029152]
[1723338723631,1.92016145,61153.0,61152.0,0.0029152]
[1723338724264,1.91988749,61153.0,61152.0,0.0029152]
[1723338725591,0.97095449,61153.0,61152.0,0.0029152]
[1723338725791,1.05326983,61153.0,61152.0,0.1445152]
[1723338726172,1.09377247,61153.0,61152.0,0.1445152]
[1723338728290,1.09364956,61153.0,61152.0,0.1445152]
[1723338728490,0.97092361,61153.0,61152.0,0.1445152]
[1723338731383,0.97092361,61153.0,61152.0,0.0029152]
[1723338731536,1.32257529,61153.0,61152.0,0.0029152]
[1723338731750,1.32257988,61153.0,61152.0,0.0029152]
[1723338732004,1.1998612,61153.0,61152.0,0.0029152]
[1723338732117,0.9709282,61153.0,61152.0,0.0029152]
[1723338732524,1.1998612,61153.0,61152.0,0.0029152]
[1723338732729,0.9709282,61153.0,61152.0,0.0029152]
[1723338733845,1.1998612,61153.0,61152.0,0.0029152]
[1723338736407,1.15947688,61153.0,61152.0,0.0029152]
[1723338736608,1.20013739,61153.0,61152.0,0.0029152]
[1723338739485,0.97120439,61153.0,61152.0,0.0029152]
[1723338739889,1.20013739,61153.0,61152.0,0.0029152]
[1723338740118,1.20022024,61153.0,61152.0,0.0029152]
[1723338740342,0.97128724,61153.0,61152.0,0.0029152]
[1723338741488,1.20022024,61153.0,61152.0,0.0029152]
[1723338742122,1.09401012,61153.0,61152.0,0.0029152]
[1723338743504,1.09400364,61153.0,61152.0,0.0029152]
[1723338743882,1.09368373,61153.0,61152.0,0.0029152]
[1723338744283,0.93054388,61153.0,61152.0,0.0029152]
[1723338744478,0.97096733,61153.0,61152.0,0.0029152]
[1723338745024,0.93054388,61153.0,61152.0,0.0029152]
[1723338745467,0.97104227,61153.0,61152.0,0.0029152]
[1723338746252,0.97104227,61153.0,61152.0,0.02374776]
[1723338746657,1.06920985,61153.0,61152.0,0.02374776]
[1723338746857,1.02871146,61153.0,61152.0,0.02374776]
[1723338747268,1.06913696,61153.0,61152.0,0.02374776]
[1723338747911,1.02871146,61153.0,61152.0,0.02374776]
[1723338748111,1.06914742,61153.0,61152.0,0.02374776]
[1723338749253,0.97097984,61153.0,61152.0,0.02374776]
[1723338749482,1.069143,61153.0,61152.0,0.02374776]
[1723338749696,1.02870704,61153.0,61152.0,0.02374776]
[1723338749894,1.06911411,61153.0,61152.0,0.02374776]
[1723338750064,1.06911411,61153.0,61152.0,0.0029152]
[1723338753106,1.0691152,61153.0,61152.0,0.0029152]
[1723338756303,1.02870813,61153.0,61152.0,0.0029152]
[1723338756464,1.06921954,61153.0,61152.0,0.0029152]
[1723338756663,0.97105529,61153.0,61152.0,0.0029152]
[1723338757429,1.19998829,61153.0,61152.0,0.0029152]
[1723338757651,0.97105529,61153.0,61152.0,0.0029152]
[1723338760029,1.0937606,61153.0,61152.0,0.0029152]
[1723338760435,0.97105529,61153.0,61152.0,0.0029152]
[1723338760699,1.09391031,61153.0,61152.0,0.0029152]
[1723338761093,0.97114594,61153.0,61152.0,0.0029152]
[1723338762527,0.15643406,61153.0,61152.0,0.1441152]
[1723338762674,0.115832,61153.0,61152.0,0.1441152]
[1723338762882,0.115832,61153.0,61152.0,0.27994618]
[1723338762883,0.015832,61153.0,61152.0,0.27994618]
[1723338763167,0.015832,61153.0,61152.0,0.62335118]
[1723338763348,0.015832,61153.0,61152.0,0.62662149]
[1723338764464,0.008832,61153.0,61152.0,0.62562149]
[1723338764618,0.014832,61153.0,61152.0,0.62660818]
[1723338764818,0.006832,61153.0,61152.0,0.62560818]
[1723338765224,0.004832,61153.0,61152.0,0.62560818]
[1723338765408,0.005832,61153.0,61152.0,0.62460818]
[1723338766007,0.000832,61153.0,61152.0,0.62460818]
[1723338766208,0.004832,61153.0,61152.0,0.62560818]
[1723338766620,0.000832,61153.0,61152.0,0.62460818]
[1723338768036,0.000832,61153.0,61152.0,0.63360818]
[1723338768274,0.000832,61153.0,61152.0,0.49779051]
[1723338768453,0.000832,61153.0,61152.0,0.63360818]
[1723338768659,0.001832,61153.0,61152.0,0.64660818]
[1723338769435,0.001832,61153.0,61152.0,0.88554518]
[1723338769681,0.001832,61153.0,61152.0,1.12032327]
[1723338769876,0.001832,61153.0,61152.0,1.4935836]
[1723338770072,0.001832,61153.0,61152.0,1.56695894]
[1723338770520,0.001832,61153.0,61152.0,1.34919369]
[1723338771038,0.001832,61153.0,61152.0,1.40642724]
[1723338771257,0.000832,61153.0,61152.0,1.38442724]
[1723338771467,0.001832,61153.0,61152.0,1.2922971]
[1723338771674,0.001832,61153.0,61152.0,1.3062971]
[1723338771889,0.001832,61153.0,61152.0,1.2842971]
[1723338772122,0.001832,61153.0,61152.0,1.05208979]
[1723338772328,0.001832,61153.0,61152.0,1.04206969]
[1723338772761,0.001832,61153.0,61152.0,0.90627212]
[1723338772937,0.001832,61153.0,61152.0,1.05207575]
[1723338773821,0.001832,61153.0,61152.0,1.27101275]
[1723338774043,0.001832,61153.0,61152.0,1.28101171]
[1723338774427,0.001832,61153.0,61152.0,1.04207471]
[1723338774630,0.001832,61153.0,61152.0,0.87825979]
[1723338776256,0.001832,61153.0,61152.0,0.87826283]
[1723338780023,0.001832,61153.0,61152.0,0.87826595]
[1723338781702,0.001832,61153.0,61152.0,1.07208087]
[1723338782143,0.001832,61153.0,61152.0,1.28101787]
[1723338782565,0.001832,61153.0,61152.0,1.16720912]
[1723338782761,0.001832,61153.0,61152.0,1.30301052]
[1723338783132,0.001832,61153.0,61152.0,1.36021259]
[1723338784646,0.001832,61153.0,61152.0,1.38321259]
[1723338784849,0.001832,61153.0,61152.0,1.32600272]
[1723338785214,0.001832,61153.0,61152.0,1.60376622]
[1723338785432,0.001832,61153.0,61152.0,2.17032619]
[1723338785670,0.000832,61157.0,61156.0,0.032]
[1723338785877,0.000832,61167.0,61166.0,0.375327]
[1723338786057,0.000832,61167.0,61166.0,1.81678266]
[1723338786300,0.000832,61167.0,61166.0,1.64698822]
[1723338786473,0.000832,61167.0,61166.0,1.90365135]
[1723338786613,0.000832,61167.0,61166.0,2.09821004]
[1723338786819,0.000832,61167.0,61166.0,1.96625135]
[1723338788455,0.000832,61167.0,61166.0,1.59294501]
[1723338788632,0.000832,61167.0,61166.0,1.79656137]
[1723338788848,0.000832,61167.0,61166.0,2.05937921]
[1723338789049,0.000832,61171.0,61170.0,0.001]
[1723338789251,0.0002071,61194.0,61185.0,0.1715]
[1723338789459,0.0002071,61194.0,61185.0,1.11199416]
[1723338789654,0.0002071,61194.0,61185.0,1.93005321]
[1723338789890,0.0002071,61194.0,61185.0,1.85354155]
[1723338790086,0.0002071,61194.0,61185.0,2.15885967]
[1723338790286,0.0002071,61194.0,61185.0,2.23181507]
[1723338790639,0.0002071,61194.0,61185.0,2.20747204]
[1723338790846,0.0002071,61194.0,61185.0,2.21247204]
[1723338791049,0.0002071,61194.0,61185.0,2.20747204]
[1723338791455,0.0002071,61194.0,61185.0,1.97000165]
[1723338791665,0.0002071,61194.0,61185.0,1.92138928]
[1723338791870,0.0002071,61194.0,61185.0,2.02428928]
[1723338792046,0.0002071,61194.0,61185.0,2.03828928]
[1723338792424,0.0002071,61194.0,61185.0,2.05228928]
[1723338792625,0.0002071,61194.0,61185.0,2.06214567]
[1723338793437,0.0002071,61194.0,61185.0,1.92644831]
[1723338793639,0.0002071,61194.0,61185.0,2.11926091]
[1723338794011,0.0002071,61194.0,61185.0,2.11926098]
[1723338794233,0.0002071,61194.0,61185.0,1.80532776]
[1723338794432,0.0002071,61194.0,61185.0,1.64752776]
[1723338795044,0.0002071,61194.0,61185.0,1.63352776]
[1723338795241,0.0002071,61194.0,61185.0,1.64752776]
[1723338796405,0.0002071,61194.0,61185.0,1.61767137]
[1723338796616,0.0002071,61194.0,61185.0,1.58067137]
[1723338796783,0.0002071,61194.0,61185.0,1.59467137]
[1723338797127,0.0002071,61194.0,61185.0,1.44497792]
[1723338797302,0.0002071,61194.0,61185.0,1.59468403]
[1723338797503,0.0755,61192.0,61185.0,1.13837003]
[1723338798135,0.0755,61192.0,61185.0,1.12437003]
[1723338799161,0.0755,61192.0,61185.0,1.16037003]
[1723338799359,0.0002071,61194.0,61185.0,1.16037003]
[1723338801417,0.0002071,61194.0,61185.0,1.26427003]
[1723338801644,0.0002071,61194.0,61185.0,1.43607003]
[1723338802585,0.0002071,61194.0,61185.0,1.24227003]
[1723338804117,0.0002071,61194.0,61185.0,1.10656392]
[1723338804118,0.0755,61193.0,61185.0,1.10656392]
[1723338804337,0.0755,61193.0,61185.0,1.24227357]
[1723338804498,0.0755,61193.0,61185.0,1.16137357]
[1723338804698,0.0755,61193.0,61185.0,1.16337357]
[1723338805342,0.0755,61193.0,61185.0,1.13837357]
[1723338808781,0.051332,61193.0,61192.0,0.343182]
[1723338809003,0.051332,61193.0,61192.0,0.47889165]
[1723338810018,0.051332,61193.0,61192.0,0.48889165]
[1723338810225,0.051332,61193.0,61192.0,0.72567965]
[1723338811315,0.051332,61193.0,61192.0,0.25810365]
[1723338811513,0.226324,61193.0,61192.0,0.008]
[1723338811711,0.111932,61193.0,61192.0,0.008]
[1723338811925,0.0794,61188.0,61182.0,0.228824]
[1723338812124,0.0794,61186.0,61185.0,0.228814]
[1723338812335,0.0794,61186.0,61185.0,0.343221]
[1723338812510,0.0794,61186.0,61185.0,0.47895531]
[1723338812511,0.08675275,61186.0,61185.0,0.47895531]
[1723338812711,0.0794,61186.0,61185.0,0.47895531]
[1723338813047,0.08675275,61186.0,61185.0,0.343221]
[1723338813428,0.08675275,61186.0,61185.0,0.345221]
[1723338814173,0.0794,61186.0,61185.0,0.48096058]
[1723338814471,0.0794,61186.0,61185.0,0.48496058]
[1723338815578,0.0794,61186.0,61185.0,0.48496064]
[1723338816133,0.0794,61186.0,61185.0,0.5668071]
[1723338816539,0.0002071,61194.0,61185.0,0.6812141]
[1723338816741,0.1469,61193.0,61192.0,0.19624046]
[1723338816945,0.1469,61193.0,61192.0,0.42502846]
[1723338817269,0.1469,61193.0,61192.0,0.56076059]
[1723338817447,0.1469,61193.0,61192.0,0.33197259]
[1723338817648,0.1469,61193.0,61192.0,0.65381646]
[1723338817903,0.1469,61193.0,61192.0,0.78954704]
[1723338818438,0.0824,61193.0,61192.0,0.78954704]
[1723338818617,0.0824,61193.0,61192.0,0.79054704]
[1723338818877,0.0824,61193.0,61192.0,0.78954704]
[1723338819189,0.0824,61193.0,61192.0,0.70870058]
[1723338819394,0.0824,61193.0,61192.0,0.47891258]
[1723338819599,0.0002071,61194.0,61192.0,0.47891258]
[1723338819824,0.0002071,61194.0,61193.0,0.34196904]
[1723338820029,0.0002071,61194.0,61193.0,0.57075304]
[1723338820243,0.0002071,61194.0,61193.0,0.79953704]
[1723338821379,0.0002071,61194.0,61193.0,1.02885196]
[1723338821599,0.0002071,61194.0,61193.0,1.05085196]
[1723338821799,0.0002071,61194.0,61193.0,1.02885196]
[1723338822140,0.0002071,61194.0,61193.0,1.26063596]
[1723338822347,0.0002071,61194.0,61193.0,1.28063596]
[1723338822542,0.0002071,61194.0,61193.0,1.28263596]
[1723338823755,0.0002071,61194.0,61193.0,1.59231996]
[1723338823965,0.0002071,61194.0,61193.0,1.61531996]
[1723338824162,0.0002071,61194.0,61193.0,2.0459084]
[1723338825077,0.0002071,61194.0,61193.0,2.1459084]
[1723338825431,0.0002071,61194.0,61193.0,2.31806283]
[1723338825636,0.0002071,61194.0,61193.0,2.33240619]
[1723338825970,0.0002071,61194.0,61193.0,2.1089523]
[1723338826175,0.0002071,61194.0,61193.0,2.27346991]
[1723338826661,0.0002071,61194.0,61193.0,2.32211089]
[1723338826866,0.0002071,61194.0,61193.0,2.17123134]
[1723338827299,0.0002071,61194.0,61193.0,2.34638765]
[1723338827511,0.0002071,61194.0,61193.0,2.17123134]
[1723338827712,0.0002071,61194.0,61193.0,2.27347089]
[1723338827916,0.0002071,61194.0,61193.0,2.37069204]
[1723338828373,0.0002071,61194.0,61193.0,2.39499733]
[1723338829225,0.0002071,61194.0,61193.0,2.27338106]
[1723338829456,0.0002071,61194.0,61193.0,2.26856296]
[1723338829869,0.0002071,61194.0,61193.0,2.26856294]
[1723338830500,0.0002071,61194.0,61193.0,2.17114151]
[1723338831141,0.0002071,61194.0,61193.0,2.15114151]
[1723338831358,0.0002071,61194.0,61193.0,2.17114151]
[1723338831574,0.0002071,61194.0,61193.0,2.07763538]
[1723338831799,0.0002071,61194.0,61193.0,1.82181746]
[1723338831987,0.0002071,61194.0,61193.0,1.82381746]
[1723338832117,0.0002071,61194.0,61193.0,1.83481746]
[1723338832327,0.0002071,61194.0,61193.0,1.82081746]